bitfinex-derivatives/quotes_ETHF0:USTF0_20250520
["timestamp","ask_amount","ask_price","bid_price","bid_amount"]
[1747718775182,0.0058249,2573.8,2573.3,3.98482]
[1747718775387,0.77694,2573.6,2573.3,3.98482]
[1747718775685,0.77694,2573.6,2573.4,1.2736]
[1747718775885,0.77696,2573.5,2573.4,1.2736]
[1747718776091,0.77695,2573.6,2573.4,1.2736]
[1747718777793,0.0058249,2573.8,2573.4,1.2736]
[1747718777992,0.0058249,2573.8,2573.7,0.7769]
[1747718778484,0.0058249,2573.8,2573.7,2.041]
[1747718778688,0.0058249,2573.8,2573.7,2.6792]
[1747718779488,7.869,2574.3,2573.7,2.6792]
[1747718779489,0.77663,2574.6,2573.7,14.7663]
[1747718779690,3.2078,2574.8,2574.2,3.2078]
[1747718779691,4.5633,2574.8,2574.2,3.2078]
[1747718779992,0.96651433,2575.0,2574.9,0.77654]
[1747718780391,0.96651433,2575.0,2574.8,2.14026]
[1747718780593,0.77654,2574.9,2574.8,1.3637]
[1747718781292,2.06574,2574.9,2574.8,1.3637]
[1747718782589,2.06574,2574.9,2574.8,4.5715]
[1747718784390,0.77657,2574.8,2574.7,0.0058249]
[1747718784597,2.03327,2574.8,2574.7,0.0058249]
[1747718785995,0.6728,2575.1,2574.7,0.0058249]
[1747718786293,0.77657,2574.8,2574.7,0.0058249]
[1747718786595,0.77657,2574.8,2574.7,1.3489249]
[1747718787196,0.77657,2574.8,2574.7,0.0058249]
[1747718790096,0.77657,2574.8,2574.7,1.0058249]
[1747718792593,0.77657,2574.8,2574.7,4.9e-06]
[1747718792795,13.63857,2574.8,2574.7,4.9e-06]
[1747718792994,8.63857,2574.8,2574.7,4.9e-06]
[1747718793296,9.97857,2574.8,2574.7,4.9e-06]
[1747718799097,14.97857,2574.8,2574.7,4.9e-06]
[1747718805402,2.11657,2574.8,2574.7,4.9e-06]
[1747718810605,7.11657,2574.8,2574.7,4.9e-06]
[1747718814301,7.11657,2574.8,2573.4,3.2078]
[1747718814302,0.77696,2573.5,2573.4,3.2078]
[1747718814501,0.77696,2573.5,2573.4,3.8654]
[1747718820716,0.77695,2573.6,2573.4,4.64239]
[1747718820915,0.77695,2573.6,2573.5,1.2851]
[1747718821514,0.0058249,2573.7,2573.5,1.2851]
[1747718821714,0.0058249,2573.7,2573.6,0.6212]
[1747718821913,0.0058249,2573.7,2573.6,1.39813]
[1747718822416,0.0058249,2573.7,2573.6,0.6212]
[1747718822619,0.7827249,2573.7,2573.6,0.6212]
[1747718824717,0.0058249,2573.7,2573.6,6.39813]
[1747718824922,3.2078,2574.5,2573.6,6.39813]
[1747718825118,0.77672,2574.3,2574.1,3.2078]
[1747718825424,0.77672,2574.3,2574.2,2.022]
[1747718828223,0.77672,2574.3,2574.2,2.6813]
[1747718829630,0.77671,2574.4,2574.2,2.6813]
[1747718829927,3.2136249,2574.5,2574.3,1.3155]
[1747718830128,0.77669,2574.4,2574.3,1.3155]
[1747718830329,3.9902949,2574.5,2574.3,2.09222]
[1747718830925,3.2136249,2574.5,2574.3,2.09222]
[1747718831119,3.9902949,2574.5,2574.3,1.3155]
[1747718831827,3.9902949,2574.5,2574.3,2.09222]
[1747718832330,0.77669,2574.4,2574.3,1.3155]
[1747718832937,2.13449,2574.4,2574.3,1.3155]
[1747718833434,2.81429,2574.4,2574.3,1.3155]
[1747718833937,0.77672,2574.3,2574.2,0.6593]
[1747718834137,2.13452,2574.3,2574.2,0.6593]
[1747718834535,0.77672,2574.3,2574.2,0.6593]
[1747718836539,0.77675,2574.2,2574.1,1.2749]
[1747718840540,0.77678,2574.1,2574.0,0.0058249]
[1747718840744,2.04678,2574.1,2574.0,0.0058249]
[1747718843545,0.6798,2574.4,2574.0,0.0058249]
[1747718843744,3.9902849,2574.5,2574.0,0.0058249]
[1747718843944,0.77669,2574.4,2574.1,0.77676]
[1747718844251,0.77669,2574.4,2574.2,2.6713]
[1747718844444,0.77669,2574.4,2573.0,3.2078]
[1747718844445,5.0,2574.4,2573.0,3.2078]
[1747718844649,3.2078,2573.4,2572.7,3.2078]
[1747718844846,0.77709,2573.1,2572.7,3.98498]
[1747718845150,0.77713,2573.0,2572.6,11.84003]
[1747718845343,2.04303,2573.0,2572.6,11.84003]
[1747718845750,1.2659,2573.0,2572.7,0.7772]
[1747718846049,0.7829249,2573.1,2572.7,0.7772]
[1747718846249,0.77712,2573.0,2572.7,0.7772]
[1747718846749,0.77712,2573.0,2572.8,0.77717]
[1747718847052,1.2717249,2573.1,2572.8,0.77715]
[1747718847248,2.0488149,2573.1,2572.8,0.77715]
[1747718847650,0.0058249,2573.1,2572.6,11.0628]
[1747718847847,0.0058249,2573.1,2573.0,0.77711]
[1747718848155,0.0058249,2573.1,2573.0,11.37311]
[1747718848355,0.0058249,2573.1,2573.0,12.71911]
[1747718848550,0.0058249,2573.1,2573.0,17.71911]
[1747718848761,3.2078,2573.4,2573.3,0.77702]
[1747718849355,3.2078,2573.4,2573.3,8.51702]
[1747718850255,3.2078,2573.4,2573.3,9.15712]
[1747718851352,3.2078,2573.4,2573.3,4.15712]
[1747718851748,0.0058249,2573.6,2573.5,0.77696]
[1747718851944,0.0058249,2573.6,2573.5,8.63296]
[1747718852151,0.0058249,2573.6,2573.5,11.84076]
[1747718857958,3.2136249,2573.6,2573.1,8.5097249]
[1747718858159,1.3264,2573.5,2573.1,8.5097249]
[1747718858464,0.77701,2573.4,2573.2,0.77705]
[1747718858760,1.9626,2573.3,2573.2,0.77705]
[1747718859860,1.9626,2573.3,2573.2,2.02135]
[1747718861262,1.9626,2573.3,2573.1,0.0058249]
[1747718861560,1.9626,2573.3,2573.1,1.2501249]
[1747718861860,1.9626,2573.3,2573.2,0.77705]
[1747718863061,1.3264,2573.3,2573.2,0.77705]
[1747718863262,3.2136249,2573.6,2573.5,0.77696]
[1747718863461,0.0058249,2573.6,2573.5,0.77696]
[1747718863657,0.0058249,2573.6,2573.5,2.12716]
[1747718863859,0.0058249,2573.6,2573.5,2.77176]
[1747718865166,0.0058249,2573.6,2573.5,1.9948]
[1747718865763,1.2581249,2573.6,2573.5,1.9948]
[1747718865963,1.2581249,2573.6,2573.5,2.77176]
[1747718870667,1.2581249,2573.6,2573.5,1.9948]
[1747718871164,1.2581249,2573.6,2573.5,2.77176]
[1747718871365,1.2581249,2573.6,2573.5,1.9948]
[1747718871366,2.0350549,2573.6,2573.5,1.9948]
[1747718871866,1.2581249,2573.6,2573.5,2.77176]
[1747718876672,1.2581249,2573.6,2573.4,7.856]
[1747718876867,0.77696,2573.5,2573.4,7.856]
[1747718877369,2.0350749,2573.6,2573.4,8.63299]
[1747718878373,1.2581249,2573.6,2573.1,11.1336249]
[1747718878673,0.77698,2573.5,2573.3,0.77702]
[1747718878875,1.3005,2573.4,2573.3,0.77702]
[1747718880567,0.77705,2573.2,2573.1,0.0058249]
[1747718881170,2.74595,2573.2,2573.1,0.0058249]
[1747718882068,7.74595,2573.2,2572.4,7.92]
[1747718882376,0.77722,2572.7,2572.4,8.69727]
[1747718882574,1.2916,2572.6,2572.4,8.69727]
[1747718882873,1.9196,2572.6,2572.5,0.77726]
[1747718884275,1.9196,2572.6,2572.4,7.92]
[1747718884470,1.9196,2572.6,2572.5,0.77726]
[1747718884875,1.9196,2572.6,2572.5,2.05786]
[1747718885777,0.6544,2572.8,2572.7,0.7772]
[1747718885976,0.96651433,2573.4,2573.3,0.77702]
[1747718886870,1.74350433,2573.4,2573.2,0.77703]
[1747718887071,1.3758,2573.3,2573.2,0.77703]
[1747718887577,2.15283,2573.3,2573.1,8.69808]
[1747718887779,0.651,2573.2,2573.1,8.69808]
[1747718887975,2.0268,2573.2,2573.1,8.69808]
[1747718889387,0.77714,2572.9,2572.8,3.2078]
[1747718889687,0.77714,2572.9,2572.5,0.633]
[1747718889688,0.77718,2572.8,2572.6,3.19223]
[1747718889985,4.5389,2572.8,2572.4,10.00358]
[1747718890288,2.11581,2572.7,2572.5,0.77725]
[1747718890586,1.3311,2572.6,2572.5,0.77725]
[1747718890981,1.3311,2572.6,2572.5,2.08255]
[1747718895287,0.6671,2572.7,2572.6,0.77723]
[1747718895590,3.2078,2572.8,2572.7,0.7772]
[1747718895988,4.4635,2572.8,2572.7,0.7772]
[1747718896893,5.1093,2572.8,2572.7,0.7772]
[1747718898189,1.9015,2572.8,2572.7,0.7772]
[1747718898787,2.67867,2572.8,2572.5,1.3053]
[1747718899791,2.67867,2572.8,2572.4,7.921]
[1747718899994,3.2078,2572.5,2571.9,3.2078]
[1747718900191,0.77742,2572.0,2571.8,0.77747]
[1747718900493,0.7774,2572.1,2571.8,0.77747]
[1747718900789,0.77746,2571.9,2571.7,8.008]
[1747718900990,1.3303,2571.8,2571.7,9.3038]
[1747718901387,1.3303,2571.8,2571.7,8.008]
[1747718901388,2.10777,2571.8,2571.7,8.008]
[1747718902386,1.3303,2571.8,2571.2,1.90385624]
[1747718902593,1.3303,2571.8,2571.3,0.77761]
[1747718902594,0.77754,2571.6,2571.3,0.77761]
[1747718902793,0.77757,2571.5,2571.3,1.3398]
[1747718903189,1.3477,2571.4,2571.3,1.3398]
[1747718903389,1.3477,2571.4,2571.3,2.11742]
[1747718904199,1.3477,2571.4,2571.3,1.3398]
[1747718904690,2.12529,2571.4,2571.2,5.11165624]
[1747718905393,1.3477,2571.4,2571.2,5.88930624]
[1747718905595,1.3477,2571.4,2571.2,3.98545]
[1747718905796,1.3477,2571.4,2571.2,0.77765]
[1747718906195,1.3477,2571.4,2571.1,2.02568]
[1747718906391,2.12532,2571.4,2571.1,2.02568]
[1747718907298,0.77763,2571.3,2571.1,2.02568]
[1747718907499,1.3172,2571.2,2571.1,2.02568]
[1747718908595,1.3172,2571.2,2571.0,0.6525]
[1747718908596,2.09486,2571.2,2571.0,1.4302]
[1747718909095,1.3172,2571.2,2571.1,0.77769]
[1747718910799,1.3172,2571.2,2571.1,2.03369]
[1747718916698,0.77758,2571.5,2571.1,1.256]
[1747718916903,2.11318,2571.5,2571.1,1.256]
[1747718917201,0.77759,2571.4,2571.2,0.77764]
[1747718917402,1.3516,2571.3,2571.2,0.77764]
[1747718919905,2.12922,2571.3,2571.2,0.77764]
[1747718920105,1.3516,2571.3,2571.2,0.77765]
[1747718920399,1.3516,2571.3,2571.1,1.256]
[1747718920605,0.77767,2571.2,2571.0,0.6525]
[1747718920806,1.9709,2571.1,2571.0,1.4302]
[1747718921801,1.9709,2571.1,2570.9,3.2078]
[1747718922010,0.77776,2570.9,2570.7,8.78978]
[1747718922207,1.297,2570.8,2570.7,8.78978]
[1747718922407,0.6739,2571.1,2570.7,8.012]
[1747718922606,0.6739,2571.1,2571.0,0.77772]
[1747718923303,1.9869,2571.1,2571.0,0.77772]
[1747718924510,1.9869,2571.1,2570.9,0.77774]
[1747718924809,2.76459,2571.1,2571.0,1.2756]
[1747718926812,1.9869,2571.1,2571.0,2.05332]
[1747718927209,2.76459,2571.1,2571.0,2.05332]
[1747718927410,2.76459,2571.1,2571.0,1.2756]
[1747718927913,1.9869,2571.1,2571.0,2.05332]
[1747718928306,2.76459,2571.1,2571.0,1.2756]
[1747718931211,2.76459,2571.1,2571.0,2.05332]
[1747718931406,1.9869,2571.1,2571.0,2.05332]
[1747718933109,2.76459,2571.1,2571.0,2.05332]
[1747718933309,1.9869,2571.1,2571.0,2.05332]
[1747718934017,2.76459,2571.1,2571.0,1.2756]
[1747718935010,2.76459,2571.1,2570.8,3.2078]
[1747718935215,2.04293,2571.0,2570.8,2.15006]
[1747718935414,1.26,2570.9,2570.8,2.15006]
[1747718937116,1.26,2570.9,2570.8,4.89006]
[1747718937417,2.03775,2570.9,2570.8,4.89006]
[1747718938116,2.03775,2570.9,2570.8,2.15006]
[1747718938519,1.26,2570.9,2570.8,2.15006]
[1747718939417,0.6739,2571.1,2571.0,0.77772]
[1747718939617,2.76039,2571.1,2571.0,0.77772]
[1747718940514,1.3088,2571.1,2571.0,0.77772]
[1747718940721,2.6627,2571.5,2571.3,0.7776]
[1747718941019,0.77759,2571.4,2571.2,3.98543]
[1747718941219,1.3088,2571.3,2571.2,3.98543]
[1747718941415,0.77759,2571.4,2571.2,3.98543]
[1747718941416,3.2078,2571.6,2571.2,7.873]
[1747718941618,2.0221,2571.8,2571.5,3.2078]
[1747718941821,2.79958,2571.8,2571.5,3.2078]
[1747718942121,2.79958,2571.8,2571.5,3.98534]
[1747718942322,2.79958,2571.8,2571.5,5.35414]
[1747718942922,2.79958,2571.8,2571.6,0.77753]
[1747718943817,2.0221,2571.8,2571.5,1.3688]
[1747718944018,2.0221,2571.8,2571.7,0.7775]
[1747718944616,2.79958,2571.8,2571.6,0.77752]
[1747718945223,1.2629,2571.7,2571.6,0.77752]
[1747718945917,3.2078,2572.0,2571.9,0.77744]
[1747718946120,4.4707,2572.0,2571.9,0.77744]
[1747718946622,1.2629,2572.0,2571.8,0.77746]
[1747718946917,2.04032,2572.0,2571.8,2.73876]
[1747718947324,1.2629,2571.9,2571.8,2.73876]
[1747718949225,1.2629,2571.9,2571.8,5.47876]
[1747718950915,2.04034,2571.9,2571.8,3.51746]
[1747718951120,0.77747,2571.8,2571.7,7.872]
[1747718951321,2.05457,2571.8,2571.7,7.872]
[1747718952331,0.77741,2572.0,2571.9,0.77744]
[1747718952626,0.97233923,2572.2,2571.8,3.2078]
[1747718952835,0.97233923,2572.2,2572.1,0.77738]
[1747718953127,0.97233923,2572.2,2572.1,11.85618]
[1747718953728,0.0058249,2572.2,2572.1,13.20228]
[1747718956132,0.96651433,2572.4,2572.3,0.77732]
[1747718957129,0.96651433,2572.4,2572.3,3.51732]
[1747718958527,0.0058249,2572.6,2572.5,0.77726]
[1747718958723,1.3124249,2572.6,2572.5,8.64726]
[1747718961227,1.3124249,2572.6,2572.5,11.38726]
[1747718962532,1.3124249,2572.6,2572.5,12.65186]
[1747718963127,1.3124249,2572.6,2572.5,9.91186]
[1747718964834,2.0896549,2572.6,2572.5,7.87]
[1747718965236,0.77727,2572.5,2572.3,0.77731]
[1747718965437,1.9769,2572.4,2572.2,0.77733]
[1747718966331,1.9769,2572.4,2572.3,0.77732]
[1747718968235,1.9769,2572.4,2572.3,3.51732]
[1747718969139,0.0058249,2572.6,2572.5,0.77726]
[1747718969334,1.3002249,2572.6,2572.5,0.77726]
[1747718973939,2.0774549,2572.6,2572.4,2.74808]
[1747718974135,1.3002249,2572.6,2572.4,5.48808]
[1747718974437,0.0058249,2572.6,2572.5,0.77726]
[1747718976040,0.7830549,2572.6,2572.4,0.77727]
[1747718977441,0.77729,2572.4,2572.3,2.74]
[1747718978237,0.77735,2572.2,2572.1,0.0058249]
[1747718978836,1.43875,2572.2,2572.1,0.0058249]
[1747718981036,4.64655,2572.2,2572.1,0.0058249]
[1747718990245,5.90265,2572.2,2572.1,0.0058249]
[1747718992549,5.1253,2572.2,2572.1,0.0058249]
[1747718992948,5.1253,2572.2,2572.1,1.2981249]
[1747718993148,5.90265,2572.2,2572.1,1.2981249]
[1747718994343,5.90265,2572.2,2572.1,0.0058249]
[1747718994842,1.94364,2571.9,2571.2,3.2078]
[1747718995047,0.77765,2571.3,2571.1,2.69628]
[1747718995444,0.77765,2571.3,2571.2,1.2523]
[1747718995739,0.77762,2571.4,2571.2,1.2523]
[1747718995945,0.77758,2571.5,2571.3,0.77761]
[1747718996350,0.77758,2571.5,2571.4,1.2523]
[1747718998049,4.5539,2571.6,2571.1,1.44397]
[1747718998245,0.77765,2571.2,2571.1,0.6663]
[1747718999951,2.13554,2571.3,2571.1,1.44398]
[1747719000250,2.13554,2571.3,2571.1,2.69758]
[1747719000551,2.13554,2571.3,2571.1,5.90538]
[1747719000753,3.2078,2571.9,2571.8,0.77747]
[1747719000957,1.3198,2572.3,2571.8,3.2078]
[1747719001148,1.46204,2572.3,2572.0,0.7774]
[1747719001350,1.46204,2572.3,2572.1,1.2536]
[1747719001561,1.3637,2572.3,2572.2,0.77735]
[1747719001855,1.3637,2572.3,2572.1,4.4614]
[1747719001856,0.0058249,2572.6,2572.5,0.77726]
[1747719002152,0.0058249,2572.6,2572.1,9.1176]
[1747719002454,0.77735,2572.3,2572.1,1.2536]
[1747719002648,1.3637,2572.2,2572.1,1.2536]
[1747719004648,0.0058249,2572.6,2572.1,4.4614]
[1747719004955,0.0058249,2572.6,2572.5,0.77726]
[1747719005655,0.0058249,2572.6,2572.4,3.98507]
[1747719005851,0.0058249,2572.6,2572.4,5.91877]
[1747719006156,0.0058249,2572.6,2572.4,2.71097]
[1747719006655,0.0058249,2572.6,2572.5,0.77726]
[1747719006855,0.0058249,2572.6,2572.5,2.09006]
[1747719007053,0.0058249,2572.6,2572.5,7.09006]
[1747719007250,0.97103415,2573.1,2573.0,0.77711]
[1747719007558,0.97103415,2573.1,2573.0,8.64011]
[1747719007955,0.77711,2573.0,2572.9,1.9337]
[1747719008161,1.74812415,2573.1,2572.9,1.9337]
[1747719008347,0.97103415,2573.1,2572.9,2.71084]
[1747719008957,2.32293415,2573.1,2573.0,0.77711]
[1747719009152,1.3519,2573.1,2573.0,2.10421]
[1747719010356,1.3519,2573.1,2573.0,2.77041]
[1747719010557,1.3519,2573.1,2572.7,0.0058249]
[1747719010760,3.98497,2572.8,2572.7,0.0058249]
[1747719011754,5.33687,2572.8,2572.7,0.0058249]
[1747719016154,2.12907,2572.8,2572.7,0.0058249]
[1747719016358,5.33687,2572.8,2572.7,0.0058249]
[1747719016858,10.33687,2572.8,2572.7,0.0058249]
[1747719017156,0.77741,2572.0,2571.9,7.862]
[1747719017459,0.7774,2572.1,2571.9,7.862]
[1747719017655,0.77746,2571.9,2571.6,2.6964]
[1747719017856,0.77749,2571.8,2571.6,2.6964]
[1747719018058,1.2628,2571.7,2571.6,3.47393]
[1747719018560,0.77757,2571.5,2571.3,7.862]
[1747719018757,0.77757,2571.5,2571.3,9.8578]
[1747719018961,0.77759,2571.4,2571.3,1.9958]
[1747719019451,0.77759,2571.4,2571.3,0.6683]
[1747719019765,0.6669,2571.6,2571.3,0.6683]
[1747719019766,0.6669,2571.6,2571.5,0.77756]
[1747719020659,0.6669,2571.6,2571.5,2.10506]
[1747719021256,1.2628,2571.8,2571.5,1.3275]
[1747719021660,1.2628,2571.8,2571.7,0.7775]
[1747719022060,1.2628,2571.8,2571.7,0.89899795]
[1747719022264,3.2136249,2571.9,2571.7,0.12149795]
[1747719022563,3.2136249,2571.9,2571.8,1.3502]
[1747719022759,4.5076249,2571.9,2571.8,2.0295]
[1747719023062,4.5076249,2571.9,2571.8,2.15099795]
[1747719024265,5.2850649,2571.9,2571.8,2.15099795]
[1747719024460,5.2850649,2571.9,2571.8,0.80079795]
[1747719025959,5.2850649,2571.9,2571.8,0.12149795]
[1747719026566,0.77763,2571.3,2571.1,0.77767]
[1747719026763,19.3122949,2571.9,2571.0,0.662]
[1747719026764,0.77768,2571.1,2571.0,0.662]
[1747719027264,2.69219,2571.1,2570.9,7.861]
[1747719027477,1.9145,2571.1,2570.9,7.861]
[1747719027674,1.9145,2571.1,2570.8,4.64755]
[1747719027675,0.77771,2571.0,2570.8,0.662]
[1747719027876,1.2654,2570.9,2570.8,0.662]
[1747719028066,0.6491,2571.1,2570.8,0.662]
[1747719028274,3.2078,2571.7,2570.9,1.2881]
[1747719028473,3.9853,2571.7,2571.4,0.77758]
[1747719028674,1.2654,2571.6,2571.0,3.881]
[1747719028874,1.2654,2571.6,2571.1,2.06576]
[1747719029075,0.77758,2571.5,2571.2,0.77765]
[1747719029274,1.2654,2571.4,2571.3,0.77762]
[1747719029472,1.2654,2571.4,2571.3,2.06572]
[1747719029678,4.4732,2571.7,2571.5,0.77756]
[1747719029978,4.4732,2571.7,2571.3,1.2881]
[1747719030177,4.4732,2571.7,2571.3,4.0281]
[1747719030378,4.4732,2571.7,2571.4,0.77759]
[1747719030579,4.4732,2571.7,2571.4,2.08699]
[1747719030881,4.4732,2571.7,2571.5,0.77756]
[1747719031080,4.4732,2571.7,2571.5,2.08696]
[1747719031780,4.4732,2571.7,2571.5,1.3094]
[1747719032080,5.2507,2571.7,2571.5,1.3094]
[1747719032481,5.2507,2571.7,2571.5,2.08696]
[1747719033984,0.77753,2571.6,2571.5,1.3094]
[1747719034183,2.07713,2571.6,2571.4,0.77758]
[1747719034383,1.2996,2571.6,2571.3,1.2426]
[1747719034572,1.2996,2571.6,2571.2,1.43963]
[1747719034778,0.77761,2571.4,2571.2,1.43963]
[1747719034979,1.2996,2571.3,2571.2,1.43963]
[1747719035383,1.2996,2571.3,2571.1,3.51767]
[1747719035384,2.07722,2571.3,2571.1,3.51767]
[1747719035584,3.42992,2571.3,2571.1,3.51767]
[1747719035786,2.6523,2571.3,2571.1,2.74]
[1747719036181,2.6523,2571.3,2571.2,0.77765]
[1747719036378,2.6523,2571.3,2570.9,9.7699]
[1747719036580,2.6523,2571.3,2571.2,0.77765]
[1747719036884,0.0058249,2571.9,2571.1,1.94418]
[1747719037074,2.7765649,2571.9,2571.6,0.77751]
[1747719037279,0.77748,2571.8,2571.4,8.63957]
[1747719037584,1.3585249,2571.9,2571.5,3.2078]
[1747719037781,2.6672249,2571.9,2571.5,4.5034]
[1747719038288,0.77752,2571.7,2571.5,7.2434]
[1747719038490,2.08623,2571.6,2571.5,13.8098]
[1747719038789,1.3087,2571.6,2571.5,13.8098]
[1747719039183,1.3585249,2571.9,2571.5,11.0698]
[1747719039385,2.6731249,2571.9,2571.8,0.77747]
[1747719039684,2.0050249,2571.9,2571.8,0.77747]
[1747719040084,2.0050249,2571.9,2571.8,3.51747]
[1747719040285,2.0050249,2571.9,2571.8,4.87207]
[1747719041278,0.0058249,2571.9,2571.8,4.87207]
[1747719042587,1.2629249,2571.9,2571.8,4.87207]
[1747719042784,2.0403649,2571.9,2571.8,2.74]
[1747719043084,2.7214649,2571.9,2571.8,2.74]
[1747719043287,2.7214649,2571.9,2571.7,0.77749]
[1747719043476,0.6644,2571.8,2571.7,0.77749]
[1747719043680,1.9215,2571.8,2571.7,0.77749]
[1747719044381,2.69899,2571.8,2571.6,2.10042]
[1747719044685,2.69898,2571.8,2571.6,2.10042]
[1747719044886,1.9215,2571.8,2571.4,0.6783]
[1747719045183,1.9215,2571.8,2570.9,3.2078]
[1747719045184,5.15156,2571.7,2570.9,3.2078]
[1747719045385,3.2078,2571.4,2570.9,3.2078]
[1747719045579,0.77768,2571.2,2570.9,3.98552]
[1747719045780,2.0181,2571.1,2570.9,3.98552]
[1747719045980,0.6843,2571.3,2570.9,3.2078]
[1747719046180,1.3527,2571.2,2571.1,0.77767]
[1747719046386,3.2078,2571.4,2571.3,0.77762]
[1747719047085,3.2078,2571.4,2571.3,4.0712]
[1747719047296,3.98539,2571.4,2571.3,2.74]
[1747719047484,6.02239,2571.4,2571.3,2.74]
[1747719048289,6.02239,2571.4,2571.2,8.63965]
[1747719049090,6.02239,2571.4,2571.2,7.862]
[1747719049688,0.77762,2571.3,2571.2,7.862]
[1747719049990,1.2935,2571.3,2570.9,0.77773]
[1747719050190,0.77771,2571.1,2570.8,0.77776]
[1747719050489,2.74382,2571.0,2570.8,0.77776]
[1747719051691,1.9661,2571.0,2570.9,0.77774]
[1747719051990,1.9661,2571.0,2570.8,0.77775]
[1747719052185,0.77774,2570.9,2570.8,2.74]
[1747719052391,2.75154,2570.9,2570.8,2.74]
[1747719053192,1.9738,2570.9,2570.6,7.863]
[1747719053395,0.7778,2570.7,2570.6,7.863]
[1747719054092,1.9738,2570.9,2570.4,0.7779]
[1747719054296,1.9738,2570.9,2570.3,8.55]
[1747719054297,1.3307,2570.6,2570.5,0.77787]
[1747719054494,0.6431,2570.9,2570.4,1.331]
[1747719054695,0.77781,2570.7,2570.5,0.77785]
[1747719054896,1.335,2570.8,2570.4,2.10888]
[1747719055092,2.11284,2570.6,2570.4,2.10888]
[1747719055392,2.11285,2570.6,2570.4,2.1089]
[1747719055594,1.42687,2570.5,2570.3,9.32791]
[1747719055894,1.335,2570.4,2570.3,9.32791]
[1747719056090,2.1129,2570.4,2570.3,0.687]
[1747719056285,0.77793,2570.3,2570.2,3.2078]
[1747719056597,2.11294,2570.3,2570.0,7.894]
[1747719056799,2.11294,2570.3,2570.1,0.77799]
[1747719056997,1.2989,2570.5,2570.1,3.2078]
[1747719057296,1.2989,2570.5,2570.4,0.7779]
[1747719057491,2.07677,2570.5,2570.3,0.7779]
[1747719057691,3.35707,2570.5,2570.3,2.037]
[1747719057895,2.5792,2570.5,2570.3,1.2591]
[1747719058091,2.5792,2570.5,2570.3,2.03701]
[1747719058295,2.5792,2570.5,2570.3,4.77701]
[1747719058595,3.35708,2570.5,2570.3,4.77701]
[1747719059096,3.35708,2570.5,2570.3,2.03701]
[1747719059597,2.5792,2570.5,2570.4,0.7779]
[1747719059793,0.7836749,2570.6,2570.4,0.7779]
[1747719059998,0.7836749,2570.6,2570.3,1.2591]
[1747719059999,0.0058249,2570.6,2570.5,0.77787]
[1747719060696,0.77788,2570.5,2570.3,5.45881]
[1747719060893,1.3508,2570.4,2570.3,5.45881]
[1747719062300,2.1287,2570.4,2570.3,4.6809]
[1747719062489,2.1287,2570.4,2570.3,2.74]
[1747719062890,5.3365,2570.4,2570.3,2.74]
[1747719063097,0.778,2570.1,2569.9,8.67304]
[1747719063296,2.12882,2570.0,2569.9,8.67305]
[1747719063496,1.3508,2570.0,2569.9,0.77805]
[1747719063691,1.323,2570.3,2569.9,0.77805]
[1747719063692,0.6497,2570.3,2570.2,0.77796]
[1747719064294,0.6497,2570.3,2570.2,2.79336]
[1747719066202,0.77796,2570.2,2570.1,2.74]
[1747719066502,2.72036,2570.2,2570.1,2.74]
[1747719066804,1.2987,2570.2,2570.1,3.51799]
[1747719067207,1.2987,2570.2,2570.1,0.77799]
[1747719067601,3.8575,2570.3,2570.2,0.77796]
[1747719067800,3.8575,2570.3,2570.0,2.74]
[1747719067801,0.77799,2570.1,2570.0,2.74]
[1747719068106,0.77799,2570.1,2569.9,8.67404]
[1747719068407,1.3304,2570.0,2569.9,10.03804]
[1747719068799,0.6497,2570.3,2570.2,0.77796]
[1747719069197,0.77796,2570.2,2570.1,2.74]
[1747719069404,5.31616,2570.2,2570.1,2.74]
[1747719069706,10.31616,2570.2,2570.1,2.74]
[1747719070208,0.77811,2569.7,2569.6,0.6632]
[1747719070508,3.2078,2569.9,2569.3,5.2077]
[1747719070806,0.77819,2569.5,2569.3,5.98592]
[1747719071010,3.41455,2569.6,2569.3,5.98592]
[1747719071198,0.77817,2569.5,2569.3,7.9477]
[1747719071403,0.7782,2569.4,2569.3,7.3118]
[1747719071605,2.12389,2569.5,2569.3,7.3118]
[1747719071900,3.2078,2569.9,2569.6,0.77813]
[1747719072103,0.6634,2570.3,2569.5,13.8438]
[1747719072303,0.6634,2570.3,2569.8,0.77807]
[1747719072304,0.77802,2570.0,2569.8,0.77807]
[1747719072509,3.9858,2570.1,2569.8,0.77807]
[1747719072709,1.3457,2570.0,2569.9,0.77805]
[1747719073208,1.3457,2570.0,2569.9,3.51805]
[1747719073610,1.2963,2570.3,2569.9,2.74]
[1747719073811,5.32511,2570.4,2570.2,0.77794]
[1747719074612,4.5472,2570.4,2570.2,0.77794]
[1747719074803,5.32509,2570.4,2570.3,1.3379]
[1747719075206,4.5472,2570.4,2570.3,1.3379]
[1747719075408,5.32509,2570.4,2570.3,1.3379]
[1747719076203,5.32509,2570.4,2570.3,4.0779]
[1747719076517,0.97103415,2571.1,2570.3,12.2857]
[1747719076808,0.97103415,2571.1,2570.4,7.897]
[1747719077012,1.3212,2571.0,2570.8,0.77775]
[1747719077312,0.77776,2570.9,2570.6,1.43462]
[1747719077508,1.3212,2570.8,2570.7,0.7778]
[1747719078007,1.3212,2570.8,2570.6,1.43462]
[1747719078210,1.3212,2570.8,2570.7,0.7778]
[1747719078409,1.3212,2570.8,2570.6,4.17462]
[1747719078609,1.3212,2570.8,2570.6,4.17463]
[1747719079117,1.3212,2570.8,2570.7,0.7778]
[1747719079607,0.77782,2570.7,2570.5,4.72723658]
[1747719079812,1.2625,2570.6,2570.5,5.50509658]